[Event "Titled Tuesday Blitz August 22 Early 2023"]
[White "Kupervaser, Erez"]
[Black "elcala"]
[WhiteFideId "2814587"]
[WhiteElo "2404"]
[BlackElo "1701"]
[Result "1-0"]
[Round "3"]
[TimeControl "180+1"]
[Date "2023.08.22"]
[WhiteClock "0:02:09"]
[BlackClock "0:01:07"]
[Board "186"]

1. e4 {[%clk 0:03:00]}  d5 {[%clk 0:03:00]} 2. exd5 {[%clk 0:03:00]}  Qxd5 {[%clk 0:03:01]} 3. Nc3 {[%clk 0:03:01]}  Qd6 {[%clk 0:03:01]} 4. d4 {[%clk 0:03:01]}  Nf6 {[%clk 0:03:00]} 5. Nf3 {[%clk 0:03:01]}  Bg4 {[%clk 0:03:00]} 6. g3 {[%clk 0:03:01]}  a6 {[%clk 0:03:00]} 7. Bg2 {[%clk 0:02:59]}  Nc6 {[%clk 0:02:55]} 8. h3 {[%clk 0:02:51]}  Bh5 {[%clk 0:02:54]} 9. Bf4 {[%clk 0:02:50]}  Qd7 {[%clk 0:02:53]} 10. g4 {[%clk 0:02:49]}  Bg6 {[%clk 0:02:52]} 11. Ne5 {[%clk 0:02:40]}  Qe6 {[%clk 0:02:06]} 12. d5 {[%clk 0:02:26]}  Nxd5 {[%clk 0:01:58]} 13. Bxd5 {[%clk 0:02:26]}  Rd8 {[%clk 0:01:47]} 14. Bxe6 {[%clk 0:02:22]}  Rxd1+ {[%clk 0:01:46]} 15. Rxd1 {[%clk 0:02:23]}  fxe6 {[%clk 0:01:46]} 16. Nxc6 {[%clk 0:02:22]}  bxc6 {[%clk 0:01:46]} 17. Bxc7 {[%clk 0:02:20]}  Kf7 {[%clk 0:01:42]} 18. Rd8 {[%clk 0:02:20]}  Bxc2 {[%clk 0:01:40]} 19. Be5 {[%clk 0:02:14]}  h5 {[%clk 0:01:33]} 20. f3 {[%clk 0:02:11]}  hxg4 {[%clk 0:01:32]} 21. fxg4 {[%clk 0:02:12]}  Bd3 {[%clk 0:01:07]} 22. Rxd3 {[%clk 0:02:09]} 1-0


[Site "https://www.chess.com"]

[Event "Titled Tuesday Blitz August 22 Early 2023"]
[White "Skiadopoulos, Nikolaos"]
[Black "Shuvalova, Polina"]
[WhiteFideId "4200772"]
[BlackFideId "24171760"]
[WhiteElo "1814"]
[BlackElo "2650"]
[Result "0-1"]
[Round "3"]
[TimeControl "180+1"]
[Date "2023.08.22"]
[WhiteClock "0:00:00"]
[BlackClock "0:01:02"]
[Board "187"]

1. b4 {[%clk 0:03:00]}  e6 {[%clk 0:02:54]} 2. Bb2 {[%clk 0:02:58]}  Nf6 {[%clk 0:02:52]} 3. b5 {[%clk 0:02:58]}  a6 {[%clk 0:02:47]} 4. a4 {[%clk 0:02:53]}  axb5 {[%clk 0:02:40]} 5. axb5 {[%clk 0:02:53]}  Rxa1 {[%clk 0:02:41]} 6. Bxa1 {[%clk 0:02:52]}  d5 {[%clk 0:02:42]} 7. Nf3 {[%clk 0:02:47]}  Be7 {[%clk 0:02:39]} 8. e3 {[%clk 0:02:45]}  O-O {[%clk 0:02:39]} 9. Be2 {[%clk 0:02:45]}  c5 {[%clk 0:02:36]} 10. bxc6 {[%clk 0:02:41]}  bxc6 {[%clk 0:02:36]} 11. c4 {[%clk 0:02:38]}  c5 {[%clk 0:02:33]} 12. d4 {[%clk 0:02:32]}  cxd4 {[%clk 0:02:28]} 13. Bxd4 {[%clk 0:02:26]}  Nc6 {[%clk 0:02:13]} 14. cxd5 {[%clk 0:02:16]}  Nxd4 {[%clk 0:02:10]} 15. Nxd4 {[%clk 0:02:14]}  Qa5+ {[%clk 0:02:06]} 16. Nd2 {[%clk 0:02:12]}  Nxd5 {[%clk 0:02:00]} 17. Nc6 {[%clk 0:01:48]}  Qc7 {[%clk 0:02:00]} 18. Nxe7+ {[%clk 0:01:48]}  Qxe7 {[%clk 0:02:01]} 19. Qb3 {[%clk 0:01:38]}  Bd7 {[%clk 0:01:51]} 20. O-O {[%clk 0:01:35]}  Rc8 {[%clk 0:01:50]} 21. Nf3 {[%clk 0:01:28]}  h6 {[%clk 0:01:48]} 22. Bc4 {[%clk 0:01:17]}  Nf6 {[%clk 0:01:45]} 23. Ne5 {[%clk 0:01:13]}  Be8 {[%clk 0:01:45]} 24. Rc1 {[%clk 0:00:54]}  Qc7 {[%clk 0:01:43]} 25. f4 {[%clk 0:00:53]}  Qc5 {[%clk 0:01:38]} 26. Re1 {[%clk 0:00:37]}  Qa5 {[%clk 0:01:35]} 27. Kf1 {[%clk 0:00:20]}  Ne4 {[%clk 0:01:33]} 28. Qd3 {[%clk 0:00:08]}  Nd2+ {[%clk 0:01:26]} 29. Kf2 {[%clk 0:00:08]}  Nxc4 {[%clk 0:01:21]} 30. Nxc4 {[%clk 0:00:07]}  Qa2+ {[%clk 0:01:21]} 31. Nd2 {[%clk 0:00:07]}  Rc2 {[%clk 0:01:22]} 32. Re2 {[%clk 0:00:07]}  Rb2 {[%clk 0:01:09]} 33. Kf3 {[%clk 0:00:06]}  Qa8+ {[%clk 0:01:08]} 34. e4 {[%clk 0:00:05]}  Bc6 {[%clk 0:01:06]} 35. Re3 {[%clk 0:00:04]}  Qa5 {[%clk 0:01:04]} 36. Ke2 {[%clk 0:00:00]}  Bb5 {[%clk 0:01:02]} 0-1


[Site "https://www.chess.com"]

[Event "Titled Tuesday Blitz August 22 Early 2023"]
[White "Hajiyev, Kanan"]
[Black "Topalov, Aleksandar"]
[WhiteFideId "13404148"]
[BlackFideId "925659"]
[WhiteElo "2511"]
[BlackElo "2358"]
[Result "1-0"]
[Round "3"]
[TimeControl "180+1"]
[Date "2023.08.22"]
[WhiteClock "0:00:11"]
[BlackClock "0:00:00"]
[Board "189"]

1. d4 {[%clk 0:02:51]}  e6 {[%clk 0:02:59]} 2. c4 {[%clk 0:02:48]}  f5 {[%clk 0:02:59]} 3. g3 {[%clk 0:02:48]}  Nf6 {[%clk 0:02:58]} 4. Bg2 {[%clk 0:02:48]}  Be7 {[%clk 0:02:58]} 5. Nd2 {[%clk 0:02:48]}  O-O {[%clk 0:02:52]} 6. Ngf3 {[%clk 0:02:46]}  Nc6 {[%clk 0:02:47]} 7. O-O {[%clk 0:02:46]}  d6 {[%clk 0:02:46]} 8. b3 {[%clk 0:02:39]}  e5 {[%clk 0:02:43]} 9. Bb2 {[%clk 0:02:29]}  e4 {[%clk 0:02:42]} 10. Ne1 {[%clk 0:02:21]}  d5 {[%clk 0:02:42]} 11. Nc2 {[%clk 0:02:14]}  Be6 {[%clk 0:02:33]} 12. a3 {[%clk 0:02:03]}  Qd7 {[%clk 0:02:24]} 13. e3 {[%clk 0:01:53]}  Na5 {[%clk 0:02:10]} 14. cxd5 {[%clk 0:01:49]}  Nxd5 {[%clk 0:02:09]} 15. b4 {[%clk 0:01:47]}  Nc6 {[%clk 0:02:04]} 16. Qe2 {[%clk 0:01:40]}  Bd6 {[%clk 0:01:57]} 17. Nc4 {[%clk 0:01:40]}  Nce7 {[%clk 0:01:55]} 18. Ne5 {[%clk 0:01:35]}  Qe8 {[%clk 0:01:42]} 19. b5 {[%clk 0:01:30]}  a6 {[%clk 0:01:35]} 20. a4 {[%clk 0:01:30]}  Bd7 {[%clk 0:01:33]} 21. Nxd7 {[%clk 0:01:19]}  Qxd7 {[%clk 0:01:33]} 22. Ba3 {[%clk 0:01:12]}  c6 {[%clk 0:01:17]} 23. Bxd6 {[%clk 0:01:09]}  Qxd6 {[%clk 0:01:17]} 24. Qc4 {[%clk 0:01:06]}  Kh8 {[%clk 0:01:14]} 25. Rfb1 {[%clk 0:01:05]}  cxb5 {[%clk 0:01:03]} 26. axb5 {[%clk 0:01:04]}  Rfc8 {[%clk 0:01:02]} 27. Qb3 {[%clk 0:00:57]}  Nc3 {[%clk 0:01:01]} 28. Qb4 {[%clk 0:00:48]}  Qxb4 {[%clk 0:00:57]} 29. Rxb4 {[%clk 0:00:49]}  Nxb5 {[%clk 0:00:56]} 30. Rb2 {[%clk 0:00:36]}  Nd5 {[%clk 0:00:53]} 31. g4 {[%clk 0:00:32]}  g6 {[%clk 0:00:37]} 32. Kf1 {[%clk 0:00:32]}  Rc7 {[%clk 0:00:30]} 33. Rxb5 {[%clk 0:00:31]}  axb5 {[%clk 0:00:13]} 34. Rxa8+ {[%clk 0:00:30]}  Kg7 {[%clk 0:00:13]} 35. Ra2 {[%clk 0:00:15]}  b4 {[%clk 0:00:07]} 36. Rb2 {[%clk 0:00:14]}  Rc3 {[%clk 0:00:03]} 37. Nxb4 {[%clk 0:00:11]}  Rc1+ {[%clk 0:00:00]} 38. Ke2 {[%clk 0:00:11]} 1-0


[Site "https://www.chess.com"]

[Event "Titled Tuesday Blitz August 22 Early 2023"]
[White "Shapiro, Daniel"]
[Black "szachmistrz2500"]
[WhiteFideId "2001780"]
[WhiteElo "2304"]
[BlackElo "2484"]
[Result "0-1"]
[Round "3"]
[TimeControl "180+1"]
[Date "2023.08.22"]
[WhiteClock "0:00:04"]
[BlackClock "0:01:54"]
[Board "191"]

1. d4 {[%clk 0:03:00]}  Nf6 {[%clk 0:02:58]} 2. c4 {[%clk 0:03:00]}  g6 {[%clk 0:02:58]} 3. Nc3 {[%clk 0:02:59]}  Bg7 {[%clk 0:02:58]} 4. e4 {[%clk 0:02:59]}  d6 {[%clk 0:02:58]} 5. Be2 {[%clk 0:02:59]}  Nbd7 {[%clk 0:02:55]} 6. Nf3 {[%clk 0:02:57]}  e5 {[%clk 0:02:54]} 7. d5 {[%clk 0:02:54]}  Nc5 {[%clk 0:02:53]} 8. Nd2 {[%clk 0:02:49]}  a5 {[%clk 0:02:52]} 9. a3 {[%clk 0:02:49]}  a4 {[%clk 0:02:51]} 10. O-O {[%clk 0:02:42]}  O-O {[%clk 0:02:50]} 11. Qc2 {[%clk 0:02:37]}  Bd7 {[%clk 0:02:47]} 12. b4 {[%clk 0:02:37]}  axb3 {[%clk 0:02:45]} 13. Nxb3 {[%clk 0:02:35]}  Na4 {[%clk 0:02:37]} 14. Nb5 {[%clk 0:02:23]}  Ne8 {[%clk 0:02:32]} 15. Rd1 {[%clk 0:02:19]}  b6 {[%clk 0:02:31]} 16. Be3 {[%clk 0:02:09]}  f5 {[%clk 0:02:29]} 17. f3 {[%clk 0:02:10]}  f4 {[%clk 0:02:28]} 18. Bf2 {[%clk 0:02:10]}  g5 {[%clk 0:02:29]} 19. Nc1 {[%clk 0:01:56]}  h5 {[%clk 0:02:26]} 20. h3 {[%clk 0:01:50]}  g4 {[%clk 0:02:24]} 21. hxg4 {[%clk 0:01:45]}  hxg4 {[%clk 0:02:25]} 22. fxg4 {[%clk 0:01:46]}  Qg5 {[%clk 0:02:22]} 23. Rd3 {[%clk 0:01:46]}  Bxg4 {[%clk 0:02:21]} 24. Bxg4 {[%clk 0:01:35]}  Qxg4 {[%clk 0:02:20]} 25. Qe2 {[%clk 0:01:36]}  Qg5 {[%clk 0:02:17]} 26. Rh3 {[%clk 0:01:28]}  Rf7 {[%clk 0:02:09]} 27. Rb1 {[%clk 0:01:10]}  Nf6 {[%clk 0:02:06]} 28. Rbb3 {[%clk 0:01:05]}  Ng4 {[%clk 0:02:02]} 29. Bh4 {[%clk 0:00:48]}  Qg6 {[%clk 0:02:00]} 30. Rbf3 {[%clk 0:00:46]}  Nc5 {[%clk 0:01:58]} 31. g3 {[%clk 0:00:37]}  Nxe4 {[%clk 0:01:57]} 32. gxf4 {[%clk 0:00:34]}  Ngf2+ {[%clk 0:01:55]} 33. Kf1 {[%clk 0:00:31]}  Nxh3 {[%clk 0:01:55]} 34. Rxh3 {[%clk 0:00:04]}  Rxf4+ {[%clk 0:01:54]} 0-1


[Site "https://www.chess.com"]

[Event "Titled Tuesday Blitz August 22 Early 2023"]
[White "Wimalasuriya, Kasun M."]
[Black "Pax-Pramana"]
[WhiteFideId "9906789"]
[WhiteElo "2289"]
[BlackElo "2481"]
[Result "1/2-1/2"]
[Round "3"]
[TimeControl "180+1"]
[Date "2023.08.22"]
[WhiteClock "0:00:51"]
[BlackClock "0:00:09"]
[Board "192"]

1. d4 {[%clk 0:03:00]}  Nf6 {[%clk 0:02:59]} 2. c4 {[%clk 0:03:00]}  e6 {[%clk 0:03:00]} 3. Nf3 {[%clk 0:02:58]}  Bb4+ {[%clk 0:02:59]} 4. Nbd2 {[%clk 0:02:58]}  O-O {[%clk 0:02:58]} 5. a3 {[%clk 0:02:55]}  Be7 {[%clk 0:02:58]} 6. e4 {[%clk 0:02:55]}  d5 {[%clk 0:02:59]} 7. e5 {[%clk 0:02:54]}  Nfd7 {[%clk 0:02:59]} 8. cxd5 {[%clk 0:02:54]}  exd5 {[%clk 0:03:00]} 9. b4 {[%clk 0:02:53]}  a5 {[%clk 0:02:57]} 10. Rb1 {[%clk 0:02:52]}  axb4 {[%clk 0:02:15]} 11. axb4 {[%clk 0:02:50]}  f6 {[%clk 0:02:03]} 12. Bd3 {[%clk 0:02:43]}  fxe5 {[%clk 0:02:03]} 13. dxe5 {[%clk 0:02:43]}  Nc6 {[%clk 0:02:03]} 14. e6 {[%clk 0:02:36]}  Nf6 {[%clk 0:01:57]} 15. b5 {[%clk 0:02:36]}  Nb4 {[%clk 0:01:52]} 16. Bf5 {[%clk 0:02:31]}  Nh5 {[%clk 0:01:39]} 17. Bg4 {[%clk 0:02:30]}  Nf4 {[%clk 0:01:39]} 18. O-O {[%clk 0:02:29]}  Bxe6 {[%clk 0:01:28]} 19. Bxe6+ {[%clk 0:02:28]}  Nxe6 {[%clk 0:01:29]} 20. Re1 {[%clk 0:02:24]}  Nf4 {[%clk 0:01:24]} 21. Nb3 {[%clk 0:02:10]}  Nfd3 {[%clk 0:01:17]} 22. Re2 {[%clk 0:02:06]}  Nxc1 {[%clk 0:01:10]} 23. Rxc1 {[%clk 0:02:06]}  Ra3 {[%clk 0:00:58]} 24. Nbd4 {[%clk 0:02:03]}  Nd3 {[%clk 0:00:49]} 25. Ra1 {[%clk 0:01:57]}  Nf4 {[%clk 0:00:44]} 26. Rd2 {[%clk 0:01:51]}  Rxa1 {[%clk 0:00:43]} 27. Qxa1 {[%clk 0:01:51]}  Bf6 {[%clk 0:00:43]} 28. Qd1 {[%clk 0:01:48]}  Re8 {[%clk 0:00:42]} 29. g3 {[%clk 0:01:46]}  Ng6 {[%clk 0:00:36]} 30. Nf5 {[%clk 0:01:45]}  c6 {[%clk 0:00:33]} 31. Qb3 {[%clk 0:01:39]}  Qd7 {[%clk 0:00:31]} 32. Ne3 {[%clk 0:01:33]}  Kh8 {[%clk 0:00:25]} 33. h4 {[%clk 0:01:33]}  d4 {[%clk 0:00:23]} 34. Nc4 {[%clk 0:01:25]}  cxb5 {[%clk 0:00:22]} 35. Na3 {[%clk 0:01:24]}  Qg4 {[%clk 0:00:20]} 36. Nxb5 {[%clk 0:01:23]}  Rf8 {[%clk 0:00:12]} 37. Nbxd4 {[%clk 0:01:19]}  Nxh4 {[%clk 0:00:11]} 38. Nxh4 {[%clk 0:01:19]}  Bxd4 {[%clk 0:00:11]} 39. Kg2 {[%clk 0:01:13]}  Bf6 {[%clk 0:00:08]} 40. Nf3 {[%clk 0:01:13]}  h5 {[%clk 0:00:07]} 41. Qxb7 {[%clk 0:01:06]}  h4 {[%clk 0:00:07]} 42. Qd7 {[%clk 0:01:06]}  h3+ {[%clk 0:00:07]} 43. Kh2 {[%clk 0:00:59]}  Qxf3 {[%clk 0:00:08]} 44. Qxh3+ {[%clk 0:00:59]}  Kg8 {[%clk 0:00:08]} 45. Qe6+ {[%clk 0:00:58]}  Kh7 {[%clk 0:00:09]} 46. Qh3+ {[%clk 0:00:57]}  Kg6 {[%clk 0:00:09]} 47. Qg2 {[%clk 0:00:53]}  Rh8+ {[%clk 0:00:09]} 48. Kg1 {[%clk 0:00:54]}  Qf5 {[%clk 0:00:10]} 49. Rd1 {[%clk 0:00:52]}  Qc2 {[%clk 0:00:09]} 50. Re1 {[%clk 0:00:51]}  Rb8 {[%clk 0:00:08]} 51. Qe4+ {[%clk 0:00:51]}  Qxe4 {[%clk 0:00:08]} 52. Rxe4 {[%clk 0:00:52]}  Kf5 {[%clk 0:00:09]} 53. Re2 {[%clk 0:00:52]}  g5 {[%clk 0:00:09]} 54. Kg2 {[%clk 0:00:53]}  Rb3 {[%clk 0:00:09]} 55. Ra2 {[%clk 0:00:53]}  g4 {[%clk 0:00:08]} 56. Rd2 {[%clk 0:00:52]}  Rb2 {[%clk 0:00:08]} 57. Rxb2 {[%clk 0:00:50]}  Bxb2 {[%clk 0:00:09]} 58. f3 {[%clk 0:00:50]}  gxf3+ {[%clk 0:00:07]} 59. Kxf3 {[%clk 0:00:50]}  Be5 {[%clk 0:00:08]} 60. g4+ {[%clk 0:00:50]}  Kg6 {[%clk 0:00:09]} 61. g5 {[%clk 0:00:51]}  Kxg5 {[%clk 0:00:09]} 1/2-1/2


[Site "https://www.chess.com"]

[Event "Titled Tuesday Blitz August 22 Early 2023"]
[White "Kowalysko, Roman"]
[Black "Harriott, Tyrell"]
[WhiteFideId "30918510"]
[BlackFideId "2086484"]
[WhiteElo "2160"]
[BlackElo "2437"]
[Result "1-0"]
[Round "3"]
[TimeControl "180+1"]
[Date "2023.08.22"]
[WhiteClock "0:00:14"]
[BlackClock "0:00:07"]
[Board "199"]

1. d4 {[%clk 0:02:59]}  e6 {[%clk 0:02:54]} 2. e4 {[%clk 0:02:56]}  d5 {[%clk 0:02:54]} 3. Nc3 {[%clk 0:02:53]}  f5 {[%clk 0:02:53]} 4. exf5 {[%clk 0:02:49]}  exf5 {[%clk 0:02:53]} 5. Bd3 {[%clk 0:02:50]}  Nf6 {[%clk 0:02:54]} 6. Bg5 {[%clk 0:02:45]}  c6 {[%clk 0:02:53]} 7. Qf3 {[%clk 0:02:43]}  Be7 {[%clk 0:02:51]} 8. Bxf5 {[%clk 0:02:43]}  O-O {[%clk 0:02:50]} 9. Bxc8 {[%clk 0:02:40]}  Qxc8 {[%clk 0:02:49]} 10. Qh3 {[%clk 0:02:37]}  Qe8 {[%clk 0:02:47]} 11. O-O-O {[%clk 0:02:37]}  Qg6 {[%clk 0:02:35]} 12. Qe6+ {[%clk 0:02:34]}  Rf7 {[%clk 0:02:35]} 13. Bxf6 {[%clk 0:02:34]}  Bxf6 {[%clk 0:02:34]} 14. Qe8+ {[%clk 0:02:33]}  Rf8 {[%clk 0:02:33]} 15. Qxg6 {[%clk 0:02:34]}  hxg6 {[%clk 0:02:33]} 16. Nf3 {[%clk 0:02:33]}  Nd7 {[%clk 0:02:32]} 17. Rhe1 {[%clk 0:02:31]}  Nb6 {[%clk 0:02:31]} 18. b3 {[%clk 0:02:30]}  Rae8 {[%clk 0:02:29]} 19. Kd2 {[%clk 0:02:09]}  Nc8 {[%clk 0:02:15]} 20. Rxe8 {[%clk 0:02:09]}  Rxe8 {[%clk 0:02:14]} 21. Re1 {[%clk 0:02:10]}  Rxe1 {[%clk 0:02:12]} 22. Kxe1 {[%clk 0:02:10]}  Nd6 {[%clk 0:02:13]} 23. Ke2 {[%clk 0:02:08]}  Nf5 {[%clk 0:02:10]} 24. Kd3 {[%clk 0:02:07]}  Nd6 {[%clk 0:02:07]} 25. Ne2 {[%clk 0:02:04]}  Kf7 {[%clk 0:02:02]} 26. c4 {[%clk 0:01:55]}  Ne4 {[%clk 0:02:02]} 27. cxd5 {[%clk 0:01:48]}  cxd5 {[%clk 0:02:03]} 28. Nf4 {[%clk 0:01:48]}  Nxf2+ {[%clk 0:02:00]} 29. Ke2 {[%clk 0:01:45]}  Ne4 {[%clk 0:01:58]} 30. Nxd5 {[%clk 0:01:46]}  Ke6 {[%clk 0:01:55]} 31. Nc7+ {[%clk 0:01:29]}  Kd7 {[%clk 0:01:51]} 32. Nb5 {[%clk 0:01:29]}  a6 {[%clk 0:01:50]} 33. Ke3 {[%clk 0:01:22]}  Ng5 {[%clk 0:01:46]} 34. Nc3 {[%clk 0:01:19]}  Nxf3 {[%clk 0:01:35]} 35. gxf3 {[%clk 0:01:19]}  Kc6 {[%clk 0:01:25]} 36. Ke4 {[%clk 0:01:16]}  b5 {[%clk 0:01:19]} 37. Nd5 {[%clk 0:01:14]}  Bd8 {[%clk 0:01:18]} 38. Ne3 {[%clk 0:01:10]}  Bc7 {[%clk 0:01:08]} 39. f4 {[%clk 0:01:09]}  Kd6 {[%clk 0:01:03]} 40. Ng4 {[%clk 0:01:09]}  Ke6 {[%clk 0:00:55]} 41. Ne5 {[%clk 0:01:09]}  Kf6 {[%clk 0:00:43]} 42. Nd7+ {[%clk 0:01:08]}  Ke7 {[%clk 0:00:42]} 43. Nc5 {[%clk 0:01:08]}  a5 {[%clk 0:00:41]} 44. Nd3 {[%clk 0:01:04]}  Bd6 {[%clk 0:00:37]} 45. Ne5 {[%clk 0:01:01]}  Kf6 {[%clk 0:00:35]} 46. Nc6 {[%clk 0:00:59]}  a4 {[%clk 0:00:32]} 47. bxa4 {[%clk 0:00:58]}  bxa4 {[%clk 0:00:33]} 48. Ne5 {[%clk 0:00:56]}  g5 {[%clk 0:00:30]} 49. f5 {[%clk 0:00:55]}  Ke7 {[%clk 0:00:24]} 50. h3 {[%clk 0:00:55]}  Kf6 {[%clk 0:00:23]} 51. Ng4+ {[%clk 0:00:52]}  Ke7 {[%clk 0:00:23]} 52. Kd5 {[%clk 0:00:51]}  Kd7 {[%clk 0:00:22]} 53. Ne3 {[%clk 0:00:45]}  Bg3 {[%clk 0:00:21]} 54. Nc4 {[%clk 0:00:43]}  Bf2 {[%clk 0:00:20]} 55. Nb6+ {[%clk 0:00:42]}  Ke7 {[%clk 0:00:21]} 56. Nxa4 {[%clk 0:00:43]}  Kf6 {[%clk 0:00:21]} 57. Ke4 {[%clk 0:00:42]}  g6 {[%clk 0:00:20]} 58. fxg6 {[%clk 0:00:41]}  Kxg6 {[%clk 0:00:21]} 59. d5 {[%clk 0:00:40]}  Bg3 {[%clk 0:00:21]} 60. Nc3 {[%clk 0:00:38]}  Kh5 {[%clk 0:00:20]} 61. Ne2 {[%clk 0:00:37]}  Bh2 {[%clk 0:00:18]} 62. Kf3 {[%clk 0:00:37]}  Kh4 {[%clk 0:00:18]} 63. Kg2 {[%clk 0:00:36]}  Bd6 {[%clk 0:00:17]} 64. a4 {[%clk 0:00:36]}  g4 {[%clk 0:00:15]} 65. hxg4 {[%clk 0:00:36]}  Kxg4 {[%clk 0:00:16]} 66. a5 {[%clk 0:00:28]}  Bc5 {[%clk 0:00:16]} 67. a6 {[%clk 0:00:27]}  Kf5 {[%clk 0:00:15]} 68. Nc3 {[%clk 0:00:26]}  Ke5 {[%clk 0:00:14]} 69. Kf3 {[%clk 0:00:26]}  Bd4 {[%clk 0:00:14]} 70. Nb5 {[%clk 0:00:22]}  Bb6 {[%clk 0:00:12]} 71. d6 {[%clk 0:00:19]}  Ke6 {[%clk 0:00:12]} 72. Ke4 {[%clk 0:00:19]}  Bc5 {[%clk 0:00:09]} 73. Kd3 {[%clk 0:00:14]}  Kd7 {[%clk 0:00:05]} 74. Kc4 {[%clk 0:00:14]}  Bb6 {[%clk 0:00:02]} 75. Kd5 {[%clk 0:00:13]}  Kc8 {[%clk 0:00:02]} 76. Kc6 {[%clk 0:00:12]}  Be3 {[%clk 0:00:01]} 77. d7+ {[%clk 0:00:12]}  Kd8 {[%clk 0:00:02]} 78. a7 {[%clk 0:00:12]}  Bxa7 {[%clk 0:00:02]} 79. Nxa7 {[%clk 0:00:12]}  Ke7 {[%clk 0:00:03]} 80. Kc7 {[%clk 0:00:12]}  Ke6 {[%clk 0:00:03]} 81. d8=Q {[%clk 0:00:13]}  Ke5 {[%clk 0:00:04]} 82. Qd6+ {[%clk 0:00:13]}  Ke4 {[%clk 0:00:04]} 83. Kc6 {[%clk 0:00:13]}  Ke3 {[%clk 0:00:05]} 84. Qd5 {[%clk 0:00:13]}  Ke2 {[%clk 0:00:06]} 85. Qb3 {[%clk 0:00:13]}  Kf2 {[%clk 0:00:06]} 86. Kd5 {[%clk 0:00:14]}  Ke2 {[%clk 0:00:07]} 87. Ke4 {[%clk 0:00:14]}  Kf2 {[%clk 0:00:08]} 88. Qf3+ {[%clk 0:00:14]}  Ke1 {[%clk 0:00:08]} 89. Qg2 {[%clk 0:00:14]}  Kd1 {[%clk 0:00:07]} 90. Kd3 {[%clk 0:00:14]} 1-0


[Site "https://www.chess.com"]

[Event "Titled Tuesday Blitz August 22 Early 2023"]
[White "Vivas Zamora, Fabian Ernesto"]
[Black "Kriti Mayur Patel"]
[WhiteFideId "3902480"]
[BlackFideId "35061780"]
[WhiteElo "2433"]
[BlackElo "2077"]
[Result "1/2-1/2"]
[Round "3"]
[TimeControl "180+1"]
[Date "2023.08.22"]
[WhiteClock "0:00:10"]
[BlackClock "0:00:50"]
[Board "201"]

1. e4 {[%clk 0:02:56]}  e5 {[%clk 0:02:58]} 2. Nf3 {[%clk 0:02:54]}  Nc6 {[%clk 0:02:59]} 3. Bc4 {[%clk 0:02:53]}  Nf6 {[%clk 0:02:59]} 4. d3 {[%clk 0:02:53]}  Bc5 {[%clk 0:02:59]} 5. c3 {[%clk 0:02:53]}  d6 {[%clk 0:03:00]} 6. O-O {[%clk 0:02:54]}  O-O {[%clk 0:03:01]} 7. h3 {[%clk 0:02:50]}  Ne7 {[%clk 0:03:00]} 8. d4 {[%clk 0:02:36]}  Bb6 {[%clk 0:02:55]} 9. Bd3 {[%clk 0:02:05]}  Ng6 {[%clk 0:02:52]} 10. Na3 {[%clk 0:01:56]}  Be6 {[%clk 0:02:47]} 11. Re1 {[%clk 0:01:51]}  c5 {[%clk 0:02:29]} 12. dxe5 {[%clk 0:01:36]}  dxe5 {[%clk 0:02:27]} 13. Be3 {[%clk 0:00:50]}  Rc8 {[%clk 0:02:20]} 14. Nc4 {[%clk 0:00:46]}  Bxc4 {[%clk 0:02:10]} 15. Bxc4 {[%clk 0:00:47]}  Nxe4 {[%clk 0:02:07]} 16. Bd3 {[%clk 0:00:31]}  Nd6 {[%clk 0:01:51]} 17. Bxg6 {[%clk 0:00:31]}  hxg6 {[%clk 0:01:41]} 18. Nxe5 {[%clk 0:00:31]}  Nf5 {[%clk 0:01:21]} 19. Nd7 {[%clk 0:00:17]}  Re8 {[%clk 0:01:14]} 20. Nxb6 {[%clk 0:00:13]}  Qxb6 {[%clk 0:01:14]} 21. Qd2 {[%clk 0:00:08]}  Rcd8 {[%clk 0:01:12]} 22. Qc2 {[%clk 0:00:07]}  Nxe3 {[%clk 0:01:09]} 23. Rxe3 {[%clk 0:00:08]}  Rxe3 {[%clk 0:01:08]} 24. fxe3 {[%clk 0:00:09]}  c4 {[%clk 0:01:09]} 25. Re1 {[%clk 0:00:09]}  Rd3 {[%clk 0:01:07]} 26. Qf2 {[%clk 0:00:09]}  Qd6 {[%clk 0:01:03]} 27. e4 {[%clk 0:00:09]}  Rd2 {[%clk 0:01:01]} 28. Re2 {[%clk 0:00:10]}  Rd1+ {[%clk 0:00:59]} 29. Re1 {[%clk 0:00:10]}  Rd2 {[%clk 0:00:53]} 30. Re2 {[%clk 0:00:10]}  Rd1+ {[%clk 0:00:49]} 31. Re1 {[%clk 0:00:10]}  Rd2 {[%clk 0:00:50]} 1/2-1/2


[Site "https://www.chess.com"]